bitfinex/quotes_BTCUSD_20250709
["timestamp","ask_amount","ask_price","bid_price","bid_amount"]
[1752091304947,0.68238626,111840.0,111830.0,1.15880758]
[1752091305159,0.67344508,111840.0,111830.0,0.9298809]
[1752091305332,0.48567693,111840.0,111830.0,1.14449138]
[1752091305567,0.673445,111840.0,111830.0,1.18295185]
[1752091305778,0.68238634,111840.0,111830.0,0.66960344]
[1752091305922,0.68238634,111840.0,111830.0,0.96411011]
[1752091306136,0.18768432,111890.0,111870.0,0.02681562]
[1752091306339,0.11825015,111880.0,111870.0,0.542664]
[1752091306509,0.48559125,111880.0,111870.0,1.03712885]
[1752091306706,0.37627868,111880.0,111870.0,0.90791226]
[1752091306944,0.37627868,111880.0,111870.0,1.10456883]
[1752091307204,0.17964,111880.0,111870.0,1.32244583]
[1752091307357,0.17964,111880.0,111870.0,1.32291636]
[1752091307358,0.18857742,111880.0,111870.0,1.32291636]
[1752091307563,0.18857742,111880.0,111870.0,1.32691636]
[1752091307564,0.21539064,111880.0,111870.0,1.32691636]
[1752091307772,0.46771561,111880.0,111870.0,0.35048794]
[1752091308134,0.45873787,111880.0,111870.0,0.84495279]
[1752091308713,0.46767561,111880.0,111870.0,1.03467058]
[1752091308900,0.46767561,111880.0,111870.0,0.84295279]
[1752091309100,0.45873787,111880.0,111870.0,0.84295279]
[1752091309306,1.00094357,111880.0,111870.0,0.01148794]
[1752091309525,0.00894118,111840.0,111830.0,0.08969107]
[1752091309726,0.54688807,111840.0,111830.0,0.09996338]
[1752091309900,0.54688807,111840.0,111830.0,0.00014079]
[1752091310515,0.638325,111840.0,111830.0,0.03857982]
[1752091310927,0.642325,111840.0,111830.0,0.03957982]
[1752091311363,0.638325,111840.0,111830.0,0.03957982]
[1752091311608,0.20232571,111830.0,111820.0,1e-08]
[1752091311806,0.19676179,111810.0,111800.0,0.07687806]
[1752091312014,0.19676179,111810.0,111790.0,0.08578204]
[1752091312015,0.18783525,111800.0,111790.0,0.08578204]
[1752091312214,0.27927218,111800.0,111790.0,0.00884248]
[1752091312476,0.77373703,111800.0,111790.0,0.00884248]
[1752091312679,0.27927218,111800.0,111790.0,0.00884248]
[1752091313095,0.45875218,111800.0,111790.0,0.00884248]
[1752091313297,0.45875218,111800.0,111790.0,0.00561248]
[1752091314105,0.27927218,111800.0,111790.0,0.00561248]
[1752091314290,0.46175218,111800.0,111790.0,0.00561248]
[1752091314556,0.46171218,111800.0,111790.0,0.00561248]
[1752091316010,0.28227218,111800.0,111790.0,0.00561248]
[1752091316235,0.46175218,111800.0,111790.0,0.00561248]
[1752091316442,0.46375218,111800.0,111790.0,0.00561248]
[1752091316650,0.46371218,111800.0,111790.0,0.00561248]
[1752091317149,0.46371218,111800.0,111790.0,0.00565248]
[1752091317723,0.49601218,111800.0,111790.0,0.00065248]
[1752091317955,0.21135545,111780.0,111770.0,1e-08]
[1752091318129,0.51439238,111780.0,111770.0,1e-08]
[1752091318374,1.03885723,111780.0,111770.0,1e-08]
[1752091318951,0.33499238,111780.0,111770.0,1e-08]
[1752091319197,0.18788567,111770.0,111760.0,0.00032]
[1752091319398,0.2793226,111770.0,111760.0,0.00032]
[1752091320334,0.29386345,111770.0,111760.0,0.00032]
[1752091320541,0.7883283,111770.0,111760.0,0.00032]
[1752091320742,0.18790248,111760.0,111750.0,0.0058714]
[1752091320970,0.17479043,111740.0,111730.0,0.12787058]
[1752091321188,0.4287613,111740.0,111730.0,0.12787058]
[1752091321401,0.4287613,111740.0,111720.0,0.40778447]
[1752091321402,0.18795293,111730.0,111720.0,0.40778447]
[1752091321605,0.27938986,111730.0,111720.0,0.13414724]
[1752091321813,0.27938986,111730.0,111720.0,0.12811058]
[1752091322017,0.45889065,111730.0,111720.0,0.00024]
[1752091322228,0.45889065,111730.0,111720.0,0.12811058]
[1752091322865,0.27953065,111730.0,111720.0,0.00024]
[1752091323074,0.38631344,111730.0,111720.0,1.09530468]
[1752091323292,0.26738165,111730.0,111720.0,0.41239242]
[1752091323493,0.10933601,111730.0,111720.0,1.11572818]
[1752091323692,0.02784682,111740.0,111730.0,0.37493]
[1752091323899,0.28932198,111740.0,111730.0,0.34]
[1752091324101,0.18795301,111730.0,111720.0,0.00923266]
[1752091324298,0.27938994,111730.0,111720.0,0.00923266]
[1752091324675,0.27938994,111730.0,111720.0,0.00347024]
[1752091325110,0.45866994,111730.0,111720.0,0.00347024]
[1752091325699,0.45966994,111730.0,111720.0,0.00897024]
[1752091326113,0.45962994,111730.0,111720.0,0.00901024]
[1752091326491,0.45962994,111730.0,111720.0,0.00890237]
[1752091326706,0.28038994,111730.0,111720.0,0.00894237]
[1752091326916,0.45962994,111730.0,111720.0,0.00894237]
[1752091327129,0.28038994,111730.0,111720.0,0.00898237]
[1752091327339,0.45962994,111730.0,111720.0,0.00902237]
[1752091327543,0.45962994,111730.0,111720.0,0.00617024]
[1752091327772,0.45962994,111730.0,111720.0,0.00621024]
[1752091327976,0.28038994,111730.0,111720.0,0.00625024]
[1752091328397,0.28038994,111730.0,111720.0,1.26018492]
[1752091328609,0.35920295,111730.0,111720.0,1.28193406]
[1752091328817,0.35920295,111730.0,111720.0,1.60979384]
[1752091328818,0.001,111730.0,111720.0,1.60979384]
[1752091329035,0.001,111730.0,111720.0,1.75979384]
[1752091329242,0.1802,111730.0,111720.0,1.85975722]
[1752091329456,0.1802,111730.0,111720.0,1.75121522]
[1752091329647,0.19709924,111730.0,111720.0,1.53584822]
[1752091329931,0.1881495,111730.0,111720.0,1.55374922]
[1752091330151,0.0089479,111750.0,111740.0,0.46922173]
[1752091330361,0.37602743,111750.0,111740.0,0.37898693]
[1752091330571,0.27954531,111750.0,111740.0,0.2]
[1752091330782,0.11828135,111750.0,111740.0,0.75786485]
[1752091330995,0.28830476,111750.0,111740.0,0.75786485]
[1752091331201,0.19690267,111730.0,111720.0,1.25214509]
[1752091331434,0.19690267,111730.0,111720.0,0.85764362]
[1752091331435,0.37602267,111730.0,111720.0,0.85764362]
[1752091331641,0.37602267,111730.0,111720.0,0.82551362]
[1752091331642,0.37702267,111730.0,111720.0,0.82551362]
[1752091331843,0.4674596,111730.0,111720.0,0.79121362]
[1752091332048,0.4674596,111730.0,111720.0,0.10121362]
[1752091332258,0.4674596,111730.0,111720.0,0.00125024]
[1752091332464,0.4674596,111730.0,111720.0,0.10121362]
[1752091332678,0.4698596,111730.0,111720.0,0.00225024]
[1752091333111,0.2937396,111730.0,111720.0,0.49671509]
[1752091333317,0.006,111730.0,111720.0,0.96578592]
[1752091333538,0.21478301,111740.0,111730.0,0.75010283]
[1752091333746,0.0099483,111750.0,111740.0,0.91798521]
[1752091333953,0.20681581,111750.0,111740.0,1.44295006]
[1752091334166,0.001,111750.0,111740.0,1.56728084]
[1752091334373,0.20577891,111770.0,111740.0,1.74637494]
[1752091334587,0.20577891,111770.0,111760.0,0.92042748]
[1752091334588,0.02683986,111770.0,111760.0,0.92042748]
[1752091334814,0.39376553,111770.0,111760.0,1.40594499]
[1752091335027,0.17904,111770.0,111760.0,1.42383959]
[1752091335245,0.20576026,111780.0,111770.0,0.60296237]
[1752091335465,0.00894542,111780.0,111770.0,1.25637312]
[1752091335671,0.37585492,111780.0,111770.0,0.55613]
[1752091335911,0.17918113,111780.0,111770.0,1.26532022]
[1752091336128,0.37599573,111780.0,111770.0,0.55613]
[1752091336335,0.37599573,111780.0,111770.0,0.71091575]
[1752091336550,0.17918113,111780.0,111770.0,1.4049146]
[1752091336762,0.20601851,111780.0,111770.0,1.2542736]
[1752091336970,0.20601851,111780.0,111770.0,1.24532722]
[1752091337230,0.21496457,111780.0,111770.0,0.75880883]
[1752091337444,0.0054714,111840.0,111820.0,0.15]
[1752091337660,0.35780528,111830.0,111820.0,1.01670058]
[1752091337874,0.10932081,111830.0,111820.0,0.72871682]
[1752091338079,0.29718223,111830.0,111820.0,1.26232421]
[1752091338292,0.20574538,111830.0,111820.0,1.26232421]
[1752091338725,0.3757881,111830.0,111820.0,0.73208888]
[1752091338940,0.3757881,111830.0,111820.0,0.71083166]
[1752091339168,0.28830503,111830.0,111820.0,0.49]
[1752091339381,0.46714503,111830.0,111820.0,0.492]
[1752091339816,0.46714503,111830.0,111820.0,0.002]
[1752091340233,0.28830503,111830.0,111820.0,0.002]
[1752091340433,0.46710503,111830.0,111820.0,0.002]
[1752091340848,0.48164588,111830.0,111820.0,0.00204]
[1752091341074,0.97611073,111830.0,111820.0,0.00208]
[1752091341283,0.33284588,111830.0,111820.0,0.00208]
[1752091341485,0.51164588,111830.0,111820.0,0.00212]
[1752091341909,0.51164588,111830.0,111820.0,0.00216]
[1752091342119,0.19677939,111800.0,111790.0,0.2]
[1752091342355,0.46697632,111800.0,111790.0,0.2]
[1752091342775,0.2057601,111780.0,111770.0,0.7719201]
[1752091342993,0.3844801,111780.0,111770.0,0.87188372]
[1752091343439,0.3844801,111780.0,111770.0,0.67202338]
[1752091343650,0.36658886,111780.0,111770.0,0.86885559]
[1752091343861,0.19661172,111780.0,111770.0,0.88674843]
[1752091344069,0.2055569,111780.0,111770.0,1.38471352]
[1752091344284,0.20555682,111780.0,111770.0,1.40766714]
[1752091344493,0.21450272,111780.0,111770.0,1.38977414]
[1752091344698,0.21450272,111780.0,111770.0,1.40766746]
[1752091344960,0.393426,111780.0,111770.0,1.40766746]
[1752091345176,0.37553392,111780.0,111770.0,1.38082736]
[1752091345388,0.3616416,111780.0,111770.0,1.20188847]
[1752091345594,0.3706416,111780.0,111770.0,1.39077414]
[1752091345808,0.3616951,111780.0,111770.0,1.20288847]
[1752091346014,0.3616951,111780.0,111770.0,0.70539362]
[1752091346233,0.3616951,111780.0,111770.0,0.10159362]
[1752091346234,0.45313203,111780.0,111770.0,0.10159362]
[1752091346442,0.45313203,111780.0,111770.0,0.00163024]
[1752091346649,0.45283203,111780.0,111770.0,0.00163024]
[1752091347087,0.29230579,111780.0,111770.0,0.00163024]
[1752091347294,0.47090579,111780.0,111770.0,0.00163024]
[1752091347716,0.28830579,111780.0,111770.0,0.17956913]
[1752091347922,0.45786579,111780.0,111770.0,0.72665762]
[1752091348134,0.19945156,111780.0,111770.0,1.09055062]
[1752091348349,0.2326902,111790.0,111780.0,0.73984444]
[1752091348562,0.35096235,111790.0,111780.0,1.26600945]
[1752091348855,0.60800703,111790.0,111780.0,1.43856371]
[1752091349059,0.41121004,111790.0,111780.0,1.43856371]
[1752091349271,0.2058508,111790.0,111780.0,1.55641849]
[1752091349474,0.3843708,111790.0,111780.0,1.55641849]
[1752091349707,0.3754216,111790.0,111780.0,1.70641849]
[1752091349935,0.1969016,111790.0,111780.0,1.85641849]
[1752091350178,0.00894278,111820.0,111810.0,0.19675177]
[1752091350386,0.29712399,111820.0,111810.0,0.69121678]
[1752091350593,0.38416706,111820.0,111810.0,0.7001602]
[1752091351015,0.01788668,111810.0,111800.0,1.41411822]
[1752091351222,0.01788668,111810.0,111800.0,0.90176525]
[1752091351223,0.39308839,111810.0,111800.0,0.90176525]
[1752091351430,0.01788708,111810.0,111800.0,0.88060947]
[1752091351643,0.37516195,111810.0,111800.0,1.38098878]
[1752091351854,0.37516195,111810.0,111800.0,0.88652393]
[1752091352064,0.37516195,111810.0,111800.0,0.88955393]
[1752091352272,0.37516195,111810.0,111800.0,1.39296292]
[1752091352478,0.19676195,111810.0,111800.0,1.39296292]
[1752091352657,0.27923936,111820.0,111810.0,0.19676179]
[1752091352928,0.20570537,111810.0,111800.0,1.3721301]
[1752091353134,0.0268305,111810.0,111800.0,0.88660955]
[1752091353309,0.20570537,111810.0,111800.0,0.89555369]
[1752091353525,0.19624676,111810.0,111800.0,0.90449775]
[1752091353737,0.20582782,111820.0,111810.0,0.23149195]
[1752091353941,0.38414782,111820.0,111810.0,0.71701338]
[1752091354150,0.19634608,111820.0,111810.0,0.7349003]
[1752091354354,0.38414782,111820.0,111810.0,0.72995696]
[1752091354573,0.38414782,111820.0,111810.0,0.73890046]
[1752091355034,0.37620544,111820.0,111810.0,0.73795696]
[1752091355226,0.36741582,111820.0,111810.0,0.73795696]
[1752091355429,0.17961408,111820.0,111810.0,0.73795696]
[1752091355562,0.2064417,111820.0,111810.0,0.54119485]
[1752091355757,0.37635828,111820.0,111810.0,0.73795696]
[1752091355956,0.37635828,111820.0,111810.0,0.72901346]
[1752091356201,0.36741574,111820.0,111810.0,0.72901346]
[1752091356581,0.36741574,111820.0,111810.0,0.04673]
[1752091356582,0.35847296,111820.0,111810.0,0.04673]
[1752091356797,0.35847296,111820.0,111810.0,0.01423593]
[1752091357096,0.35847296,111820.0,111810.0,0.50870078]
[1752091357297,0.35847296,111820.0,111810.0,0.50646485]
[1752091357682,0.35847296,111820.0,111810.0,0.69428346]
[1752091357886,0.35847296,111820.0,111810.0,0.012]
[1752091358151,0.44990989,111820.0,111810.0,0.012]
[1752091358367,0.44990989,111820.0,111810.0,0.69428346]
[1752091358630,0.44990989,111820.0,111810.0,0.50946485]
[1752091359328,0.44990989,111820.0,111810.0,0.68833972]
[1752091359555,0.27105101,111820.0,111810.0,0.70622696]
[1752091359782,0.19729892,111820.0,111810.0,0.78781356]
[1752091360006,0.18835638,111820.0,111810.0,1.12781356]
[1752091360248,0.18827638,111820.0,111810.0,1.12781356]
[1752091360485,0.19721892,111820.0,111810.0,1.12781356]
[1752091360705,0.17933408,111820.0,111810.0,1.12781356]
[1752091360958,0.00129408,111820.0,111810.0,1.80012256]
[1752091361157,0.17933408,111820.0,111810.0,1.81466341]
[1752091361394,0.17933408,111820.0,111810.0,1.91462679]
[1752091361597,0.39396304,111820.0,111810.0,1.66880584]
[1752091361790,0.38402138,111820.0,111810.0,1.4978905]
[1752091362022,0.38402138,111820.0,111810.0,1.52077726]
[1752091362207,0.37607876,111820.0,111810.0,1.50394684]
[1752091362406,0.19721908,111820.0,111810.0,1.4308134]
[1752091362635,0.17933408,111820.0,111810.0,1.4308134]
[1752091362851,0.00129408,111820.0,111810.0,1.59460425]
[1752091363066,0.183251,111840.0,111830.0,0.77076834]
[1752091363290,0.183251,111840.0,111830.0,1.36819657]
[1752091363500,0.183251,111840.0,111830.0,1.68255757]
[1752091363709,0.183251,111840.0,111830.0,1.83255757]
[1752091364144,0.183251,111840.0,111830.0,1.74771557]
[1752091364345,0.006331,111840.0,111830.0,1.65638757]
[1752091364559,0.184211,111840.0,111830.0,1.65638757]
[1752091365008,0.38091953,111840.0,111830.0,0.93774832]
[1752091365357,0.38091953,111840.0,111830.0,1.11880626]
[1752091365358,0.29352957,111840.0,111830.0,1.14563172]
[1752091365563,0.01527178,111840.0,111830.0,1.64309657]
[1752091365804,0.19311162,111840.0,111830.0,1.67509657]
[1752091365965,0.006331,111840.0,111830.0,3.11724557]
[1752091366201,0.184131,111840.0,111830.0,2.62207857]
[1752091366445,0.184131,111840.0,111830.0,2.63661942]
[1752091367505,0.184051,111840.0,111830.0,2.63661942]
[1752091368176,0.015331,111880.0,111870.0,0.55559479]
[1752091368401,0.0154721,111880.0,111870.0,1.62207264]
[1752091368615,0.25966274,111900.0,111870.0,1.64079763]
[1752091368616,0.0002,111900.0,111870.0,1.64079763]
[1752091368828,0.18681599,111900.0,111890.0,1.07765805]
[1752091369051,0.18681583,111900.0,111890.0,1.07765805]
[1752091369270,0.39235552,111900.0,111890.0,1.52214917]
[1752091369490,0.17788,111900.0,111890.0,1.54896024]
[1752091369731,0.17788,111900.0,111890.0,1.57956024]
[1752091369940,0.17784,111900.0,111890.0,1.61206024]
[1752091370380,0.17784,111900.0,111890.0,1.27206024]
[1752091370594,0.17884,111900.0,111890.0,1.27806024]
[1752091370796,0.17884,111900.0,111890.0,2.73710724]
[1752091371249,0.18777583,111900.0,111890.0,0.9197046]
[1752091371447,0.1788,111900.0,111890.0,1.41110624]
[1752091371805,0.1788,111900.0,111890.0,1.41410624]
[1752091372030,0.0012,111900.0,111890.0,1.41110624]
[1752091372235,0.17876,111900.0,111890.0,1.60410624]
[1752091372659,0.18769599,111900.0,111890.0,1.73197724]
[1752091372890,0.17876,111900.0,111890.0,1.69947724]
[1752091373292,0.0012,111900.0,111890.0,1.69947724]
[1752091373503,0.0012,111900.0,111890.0,1.73597724]
[1752091373845,0.17868,111900.0,111890.0,1.09201239]
[1752091374114,0.0012,111900.0,111890.0,1.58647724]
[1752091374541,0.0012,111900.0,111890.0,1.69245502]
[1752091374754,0.0012,111900.0,111890.0,2.01989502]
[1752091374960,0.005331,111910.0,111900.0,3.99669154]
[1752091375183,0.005331,111910.0,111900.0,4.64569332]
[1752091375454,0.03593196,111940.0,111930.0,1.19548475]
[1752091375665,0.38353667,111940.0,111930.0,1.18655108]
[1752091375882,0.00067036,111940.0,111930.0,1.73388327]
[1752091376104,0.17803036,111940.0,111930.0,1.76408327]
[1752091376521,0.17803036,111940.0,111930.0,2.12153527]
[1752091376732,0.02746921,111940.0,111930.0,1.85748976]
[1752091376944,0.17799036,111940.0,111930.0,1.21435217]
[1752091377172,0.17799036,111940.0,111930.0,2.29084902]
[1752091377387,0.00067036,111940.0,111930.0,2.32164902]
[1752091377614,0.17795036,111940.0,111930.0,2.32164902]
[1752091377844,0.17795036,111940.0,111930.0,2.32264902]
[1752091378304,0.17795036,111940.0,111930.0,2.00039902]
[1752091378534,0.00067036,111940.0,111930.0,2.00039902]
[1752091378763,0.00067036,111940.0,111930.0,0.89748483]
[1752091378981,0.02746897,111940.0,111930.0,0.90541842]
[1752091379211,0.02746881,111940.0,111930.0,1.39988327]
[1752091379438,0.22400249,111940.0,111930.0,1.39094968]
[1752091379658,0.00067036,111940.0,111930.0,1.55068727]
[1752091379869,0.17787036,111940.0,111930.0,1.55068727]
[1752091380082,0.17787036,111940.0,111930.0,1.58278727]
[1752091380324,0.17787036,111940.0,111930.0,1.59632812]
[1752091380592,0.00067036,111940.0,111930.0,1.59932812]
[1752091380803,0.19569602,111940.0,111930.0,1.61888327]
[1752091381023,0.39222962,111940.0,111930.0,0.85193415]
[1752091381244,0.46580089,111940.0,111930.0,0.203]
[1752091381453,0.49786089,111940.0,111930.0,0.003]
[1752091381708,0.32074089,111940.0,111930.0,0.003]
[1752091381936,0.46572089,111940.0,111930.0,0.203]
[1752091382163,0.46572089,111940.0,111930.0,0.003]
[1752091382849,0.2780804,111940.0,111930.0,0.399551]
[1752091383111,0.4746136,111940.0,111930.0,0.399551]
[1752091383313,0.28864073,111940.0,111930.0,0.3816831]
[1752091383535,0.46568073,111940.0,111930.0,0.38761725]
[1752091383750,0.29757408,111940.0,111930.0,0.40648531]
[1752091383958,0.47461408,111940.0,111930.0,0.40848531]
[1752091384186,0.46568097,111940.0,111930.0,0.39061725]
[1752091384394,0.45674778,111940.0,111930.0,0.203]
[1752091384621,0.45674778,111940.0,111930.0,0.003]
[1752091385044,0.48884778,111940.0,111930.0,0.003]
[1752091385259,0.56063851,111940.0,111930.0,0.003]
[1752091385477,0.51904778,111940.0,111930.0,0.003]
[1752091386114,0.51904778,111940.0,111930.0,0.001]
[1752091386355,0.19660354,111900.0,111890.0,0.49285]
[1752091386569,0.37352354,111900.0,111890.0,1.10838657]
[1752091386825,0.46496047,111900.0,111890.0,0.92070241]
[1752091387029,0.49646047,111900.0,111890.0,0.00600503]
[1752091387246,0.49646047,111900.0,111870.0,0.23848672]
[1752091387247,0.19663868,111880.0,111870.0,0.23848672]
[1752091387462,0.46495561,111880.0,111870.0,0.33674065]
[1752091387671,0.46471923,111880.0,111870.0,0.33674065]
[1752091388341,0.46467923,111880.0,111870.0,0.23677727]
[1752091388547,0.11345586,111880.0,111870.0,0.55259544]
[1752091388781,0.46012108,111880.0,111870.0,0.85803543]
[1752091388997,0.46012108,111880.0,111870.0,0.6792565]
[1752091389203,0.46012108,111880.0,111870.0,0.3392565]
[1752091389830,0.46012108,111880.0,111870.0,0.3422565]
[1752091390049,0.46012108,111880.0,111870.0,0.33624837]
[1752091390255,0.46012108,111880.0,111870.0,0.34226544]
[1752091390465,0.46012108,111880.0,111870.0,0.13624837]
[1752091390729,0.46012108,111880.0,111870.0,0.1136986]
[1752091390730,0.49162108,111880.0,111870.0,0.1136986]
[1752091390983,0.19667384,111860.0,111850.0,0.3]
[1752091391178,0.64163077,111860.0,111850.0,0.30602159]
[1752091391389,0.64163077,111860.0,111850.0,0.64616269]
[1752091391808,0.64163077,111860.0,111850.0,0.50616269]
[1752091392231,0.64163077,111860.0,111850.0,0.30616269]
[1752091392442,0.64163077,111860.0,111850.0,0.30916269]
[1752091392899,0.46479077,111860.0,111850.0,0.50916269]
[1752091393104,0.46483077,111860.0,111850.0,0.50916269]
[1752091393518,0.46483077,111860.0,111850.0,0.69983284]
[1752091393730,0.45589143,111860.0,111850.0,0.5031411]
[1752091393942,0.47373043,111860.0,111850.0,0.60562033]
[1752091394152,0.46479109,111860.0,111850.0,0.5051411]
[1752091394353,0.46479109,111860.0,111850.0,0.60762033]
[1752091394555,0.46479109,111860.0,111850.0,0.5051411]
[1752091395595,0.46479109,111860.0,111850.0,0.3051411]
[1752091396689,0.28811109,111860.0,111850.0,0.3051411]
[1752091397116,0.63233151,111860.0,111850.0,0.5051411]
[1752091397355,0.63233151,111860.0,111850.0,0.683952]
[1752091397584,0.63233151,111860.0,111850.0,0.5051411]
[1752091397811,0.71344397,111860.0,111850.0,0.3051411]
[1752091398041,1.27340882,111860.0,111850.0,0.3051411]
[1752091398339,1.19229636,111860.0,111850.0,0.3051411]
[1752091398540,1.18999636,111860.0,111850.0,0.3051411]
[1752091398755,1.18999636,111860.0,111850.0,0.0001411]
[1752091398981,1.18999636,111860.0,111840.0,1e-08]
[1752091398982,0.31739213,111850.0,111840.0,1e-08]
[1752091399194,0.19676179,111810.0,111800.0,0.10247923]
[1752091399411,0.64119872,111810.0,111800.0,0.20244261]
[1752091399869,0.64119872,111810.0,111800.0,0.09996338]
[1752091400338,0.18783525,111800.0,111790.0,0.0073931]
[1752091400560,0.27927218,111800.0,111790.0,0.0073931]
[1752091400783,0.27927218,111800.0,111790.0,0.00753418]
[1752091401002,0.07798326,111800.0,111790.0,0.00753418]
[1752091401216,0.26581851,111800.0,111790.0,0.18724469]
[1752091401689,0.27476281,111800.0,111790.0,0.18724469]
[1752091402129,0.27476281,111800.0,111790.0,0.13615814]
[1752091402336,0.27576281,111800.0,111790.0,0.13615814]
[1752091402978,0.27676281,111800.0,111790.0,0.00753418]
[1752091403194,0.30846281,111800.0,111790.0,0.00757418]
[1752091403629,0.27676281,111800.0,111790.0,0.00757418]
[1752091403846,0.27676281,111800.0,111790.0,0.00807418]
[1752091404734,0.07998326,111800.0,111790.0,0.81901512]
[1752091404971,0.003,111800.0,111790.0,1.37083596]
[1752091405236,0.18834382,111800.0,111790.0,1.52975992]
[1752091405720,0.18834382,111800.0,111790.0,1.01740527]
[1752091405721,0.39106711,111800.0,111790.0,1.01740527]
[1752091405941,0.45567218,111800.0,111790.0,0.47669814]
[1752091406121,0.27927218,111800.0,111790.0,0.00807418]
[1752091406392,0.45567218,111800.0,111790.0,0.00807418]
[1752091407032,0.45567218,111800.0,111790.0,0.1109819]
[1752091408119,0.45467218,111800.0,111790.0,0.1109819]
[1752091408320,0.45467218,111800.0,111790.0,0.00807418]
[1752091410000,0.45463218,111800.0,111790.0,0.00807418]
[1752091411925,0.21995205,111790.0,111780.0,4e-05]
[1752091412133,0.83705383,111790.0,111780.0,0.00051024]
[1752091412375,0.34258898,111790.0,111780.0,0.00051024]
[1752091413039,0.31138898,111790.0,111780.0,0.00051024]
[1752091413241,0.31338898,111790.0,111780.0,0.00051024]
[1752091413732,0.85319468,111790.0,111780.0,0.00051024]
[1752091413944,0.34418898,111790.0,111780.0,0.00051024]
[1752091414150,0.49066898,111790.0,111780.0,0.00051024]
[1752091414344,0.28228898,111790.0,111780.0,0.00051024]
[1752091414597,0.46447408,111790.0,111780.0,0.00051024]
[1752091414802,0.47047408,111790.0,111780.0,0.20051024]
[1752091415017,0.47347408,111790.0,111780.0,0.20051024]
[1752091415224,0.46747408,111790.0,111780.0,0.20051024]
[1752091415431,0.46647408,111790.0,111780.0,0.37943312]
[1752091415641,0.46647408,111790.0,111780.0,0.38837926]
[1752091415850,0.28856681,111790.0,111780.0,0.94048125]
[1752091416057,0.29751143,111790.0,111780.0,0.94048125]
[1752091416279,0.28856633,111790.0,111780.0,0.94048125]
[1752091416482,0.1792,111790.0,111780.0,1.46399125]
[1752091416640,0.003,111790.0,111780.0,1.56395463]
[1752091417222,0.1782,111790.0,111780.0,1.56395463]
[1752091417422,0.1762,111790.0,111780.0,1.56395463]
[1752091417631,0.1792,111790.0,111780.0,1.56395463]
[1752091417837,0.1822,111790.0,111780.0,1.56395463]
[1752091418258,0.1901447,111790.0,111780.0,1.56395463]
[1752091418417,0.19908948,111790.0,111780.0,1.56395463]
[1752091418624,0.20803442,111790.0,111780.0,1.56395463]
[1752091418869,0.19014462,111790.0,111780.0,1.56395463]
[1752091419246,0.19110462,111790.0,111780.0,1.56395463]
[1752091419452,0.2000494,111790.0,111780.0,1.56395463]
[1752091419651,0.21793968,111790.0,111780.0,1.55500905]
[1752091419852,0.39684727,111790.0,111780.0,1.64120921]
[1752091420224,0.1910647,111790.0,111780.0,1.68195479]
[1752091420479,0.2089545,111790.0,111780.0,1.68195479]
[1752091421196,0.006,111790.0,111780.0,1.71205479]
[1752091421398,0.006,111790.0,111780.0,1.71465479]
[1752091421605,0.18208,111790.0,111780.0,2.67703679]
[1752091421833,0.18208,111790.0,111780.0,2.67716679]
[1752091422032,0.18204,111790.0,111780.0,2.41980879]
[1752091422435,0.18204,111790.0,111780.0,2.67714274]
[1752091422641,0.006,111790.0,111780.0,2.67714274]
[1752091422850,0.006,111790.0,111780.0,2.69168359]
[1752091423287,0.18204,111790.0,111780.0,2.69168359]
[1752091423443,0.006,111790.0,111780.0,2.43434964]
[1752091423638,0.003,111790.0,111780.0,2.43434964]
[1752091424060,0.176,111800.0,111790.0,0.41764193]
[1752091424300,0.176,111800.0,111790.0,1.01531016]
[1752091424506,0.39066743,111800.0,111790.0,0.30000053]
[1752091424635,0.21177648,111800.0,111790.0,0.80017016]
[1752091424830,0.2028321,111800.0,111790.0,0.80017016]
[1752091425128,0.20283202,111800.0,111790.0,0.80017016]
[1752091425265,0.1849439,111800.0,111790.0,0.80341016]
[1752091425466,0.1889439,111800.0,111790.0,0.83521016]
[1752091425948,0.18,111800.0,111790.0,0.86531016]
[1752091426378,0.183,111800.0,111790.0,0.86531016]
[1752091426588,0.183,111800.0,111790.0,1.81651516]
[1752091427030,0.183,111800.0,111790.0,1.63708426]
[1752091427246,0.183,111800.0,111790.0,1.66394326]
[1752091427673,0.183,111800.0,111790.0,1.37319326]
[1752091428058,0.183,111800.0,111790.0,0.73076231]
[1752091428303,0.007,111800.0,111790.0,0.96319626]
[1752091428514,0.18284,111800.0,111790.0,0.92985626]
[1752091428662,0.18284,111800.0,111790.0,0.77811226]
[1752091429457,0.18284,111800.0,111790.0,0.81325226]
[1752091430535,0.18284,111800.0,111790.0,0.81307901]
[1752091431138,0.18284,111800.0,111790.0,0.81248501]
[1752091431464,0.18284,111800.0,111790.0,0.81001001]
[1752091431882,0.18284,111800.0,111790.0,0.65263701]
[1752091432086,0.18284,111800.0,111790.0,0.959038]
[1752091432779,0.18284,111800.0,111790.0,1.30687195]
[1752091432983,0.18284,111800.0,111790.0,1.30215919]
[1752091433145,0.007,111800.0,111790.0,1.31110421]
[1752091433342,0.18268,111800.0,111790.0,1.66490256]
[1752091433870,0.007,111800.0,111790.0,1.90633949]
[1752091434096,0.21468,111830.0,111820.0,0.74568674]
[1752091434287,0.39032,111830.0,111820.0,1.06072069]
[1752091434498,0.39032,111830.0,111820.0,1.06396069]
[1752091434693,0.39926142,111830.0,111820.0,1.06396069]
[1752091434833,0.40820308,111830.0,111820.0,1.06072069]
[1752091435247,0.41728587,111830.0,111820.0,1.06072069]
[1752091435642,0.6875664,111830.0,111820.0,0.54]
[1752091435915,0.6875664,111830.0,111810.0,0.52781861]
[1752091435916,0.18780174,111820.0,111810.0,0.52781861]
[1752091436121,0.27923867,111820.0,111810.0,0.52781861]
[1752091436814,0.27923867,111820.0,111810.0,0.84285248]
[1752091437016,0.45479867,111820.0,111810.0,0.65503395]
[1752091437335,0.27923867,111820.0,111810.0,0.84585248]
[1752091437510,0.45475867,111820.0,111810.0,0.66403395]
[1752091437737,0.44581581,111820.0,111810.0,0.66403395]
[1752091438267,0.27029581,111820.0,111810.0,0.85185248]
[1752091438466,0.44581581,111820.0,111810.0,0.66403395]
[1752091438803,0.44581581,111820.0,111810.0,0.69494298]
[1752091439009,0.45471867,111820.0,111810.0,0.87381785]
[1752091439210,0.26691693,111820.0,111810.0,0.90959153]
[1752091439541,0.27585915,111820.0,111810.0,0.90064843]
[1752091439734,0.27585915,111820.0,111810.0,0.90959169]
[1752091439943,0.27585915,111820.0,111810.0,0.97004992]
[1752091440445,0.10932145,111820.0,111810.0,0.95216356]
[1752091440625,0.29370391,111820.0,111810.0,0.59455782]
[1752091440825,0.29370391,111820.0,111810.0,0.90959177]
[1752091441052,0.29370391,111820.0,111810.0,0.90064851]
[1752091441255,0.09143693,111820.0,111810.0,0.91853495]
[1752091441486,0.26683693,111820.0,111810.0,0.91853495]
[1752091441661,0.27577923,111820.0,111810.0,0.91853495]
[1752091441818,0.27577923,111820.0,111810.0,0.97005]
[1752091442208,0.26679693,111820.0,111810.0,0.91853495]
[1752091442419,0.19522287,111820.0,111810.0,1.02153089]